Cogmind - Beta 13 @@@ ROGUE MODE // 2024.04.04 @ 02:45:34 Player: Aavak Result: Destroyed by G-47 Trooper with Particle Gun Performance ------------- Evolutions (0) 0 Regions Visited (1) 200 Robots Destroyed (18) 90 Value Destroyed (346) 346 Prototype IDs (4) 80 Alien Tech Used (0) 0 Bonus (0) 0 TOTAL SCORE: 716 Bonus ------- None Cogmind --------- Core Integrity 0/250 Matter 300/300 Energy 250/250 System Corruption 0% Temperature Cool (9) Movement Treading (160) Location -10/Materials Parts ------- > --- POWER (1) -------- Ion Engine > --- PROPULSION (2) --- Light Treads Light Treads > --- UTILITY (2) ------ Structural Scanner Hacking Suite > --- WEAPON (2) ------- Assault Rifle Hammer > --- INVENTORY (5) ---- Ion Engine High-capacity Storage Unit High-capacity Matter Pod (172) Signal Interpreter Seismic Detector Peak State ------------ > --- POWER ------------ Ion Engine > --- PROPULSION ------- Light Treads Light Treads > --- UTILITY ---------- Small Storage Unit Improved Terrain Scanner > --- WEAPON ----------- Light Assault Rifle Light Assault Rifle > --- INVENTORY -------- Ion Engine Aluminum Leg Aluminum Leg Small Storage Unit Seismic Detector Seismic Detector Assault Rifle [Rating: 9] Favorites ----------- Power Ion Engine Engine Ion Engine Propulsion Light Treads Treads Light Treads Utility Seismic Detector Device Seismic Detector Storage Small Storage Unit Hackware Hacking Suite Weapon Light Assault Rifle Ballistic Gun Light Assault Rifle Impact Weapon Hammer Build | -11 -10 ------- Run | Yrd Mat Slots Evolved . | . . Power . | . . Propulsion . | . . Utility . | . . Weapon . | . . Parts Attached 22 | 11 11 Power 2 | 1 1 Engine 2 | 1 1 Core . | . . Reactor . | . . Propulsion 4 | 2 2 Treads 4 | 2 2 Leg . | . . Wheel . | . . Hover . | . . Flight . | . . Utility 11 | 6 5 Device 8 | 4 4 Storage 2 | 2 . Processor . | . . Hackware 1 | . 1 Protection . | . . Artifact . | . . Weapon 5 | 2 3 Energy Gun . | . . Energy Cannon . | . . Ballistic Gun 4 | 2 2 Ballistic Cannon . | . . Launcher . | . . Special Weapon . | . . Impact Weapon 1 | . 1 Slashing Weapon . | . . Piercing Weapon . | . . Special Melee Weapon . | . . Unidentified Prototypes . | . . Parts Lost 5 | . 5 Power 1 | . 1 Propulsion 1 | . 1 Utility 2 | . 2 Weapon 1 | . 1 Highest Loss Streak 3 | . 3 To Critical Strikes . | . . Average Slot Usage (%) 90 | . 90 Engine 13 | . 13 Treads 21 | . 21 Device 20 | . 20 Hackware 6 | . 6 Ballistic Gun 14 | . 14 Impact Weapon 12 | . 12 Naked Turns . | . . Heaviest Build 17 | 17 10 Greatest Support 40 | 40 40 Greatest Overweight (x) . | . . Average Overweight (x) . | . . Largest Inventory Capacity 8 | 8 5 Average Capacity 5 | 7 5 Most Carried 7 | 7 5 Average Carried 4 | 4 4 Final Capacity 5 | 5 5 Final Carried 5 | 4 5 Class Distribution -------------------- 100% | Mutant Dominant Class ---------------- Mutant | -10/Materials Resources | -11 -10 ----------- Run | Yrd Mat Matter Collected 623 | 331 292 Remotely . | . . Salvage Created 612 | 177 435 Parts 37 | 18 19 Haulers Intercepted 2 | . 2 Recyclers Shooed . | . . Parts Field Recycled . | . . Retrieved Matter . | . . Parts Self-Destructed . | . . Prevented . | . . Kills | -11 -10 ------- Run | Yrd Mat Combat Hostiles Destroyed 7 | . 7 Melee 5 | . 5 Classes Destroyed 6 | 2 4 Builder 1 | . 1 Tunneler 5 | 4 1 Hauler 2 | . 2 Recycler 1 | 1 . Operator 2 | . 2 Grunt 7 | . 7 Best Kill Streak 3 | 3 3 Combat Bots Only 3 | . 3 Max Kills in Single Turn 1 | 1 1 Gunslinging . | . . Exploded . | . . Melee 1 | . 1 Uniques/NPCs Destroyed . | . . Combat | -11 -10 -------- Run | Yrd Mat Hostile Shots Fired 97 | . 97 Missed 26 | . 26 Damage Taken 939 | . 939 Core 258 | . 258 Absorbed by Shields . | . . Regen/Repaired (Parts) 112 | . 112 Core Remaining (%) 100 | 100 . Volleys Fired 28 | 17 11 Largest 2 | 2 1 Hottest 40 | 40 20 Shots Fired 45 | 34 11 Gun 45 | 34 11 Cannon . | . . Launcher . | . . Special . | . . Kinetic 45 | 34 11 Thermal . | . . Explosive . | . . Electromagnetic . | . . Robot Hit Streak 7 | 7 5 Robot Miss Streak 2 | 2 2 Penetration Max . | . . Secondary Targets . | . . Shots Hit Robots 75 | 25 50 Core Hits 19 | 10 9 Critical Kills 5 | 1 4 Critical Parts Destroyed 3 | 1 2 Critical Strikes 8 | 2 6 Destroy 2 | 2 . Smash 6 | . 6 Melee Attacks 57 | . 57 Impact 57 | . 57 Slashing . | . . Piercing . | . . Sneak Attacks 6 | . 6 Combat Hostiles . | . . Follow-up Attacks . | . . Damage Inflicted 1476 | 218 1258 Guns 294 | 218 76 Cannons . | . . Explosions . | . . Melee 1182 | . 1182 Ramming . | . . Kinetic 294 | 218 76 Thermal . | . . Explosive . | . . Electromagnetic . | . . Impact 1182 | . 1182 Slashing . | . . Piercing . | . . Highest Corruption . | . . Average Corruption . | . . Corruption Purged . | . . Corruption Blocked . | . . Overload Shots . | . . Overflow Damage 131 | . 131 Projectiles . | . . Explosions . | . . Melee 131 | . 131 Knockbacks 4 | . 4 Impact 4 | . 4 Kinetic . | . . Secondary . | . . Self-Inflicted Damage . | . . Shots . | . . Rammed . | . . Targets Rammed . | . . Kicked . | . . Crushed . | . . Highest Temperature 27 | . 27 Average Temperature 11 | . 11 Received Heat Transfer 609 | . 609 Siege Activations . | . . Robots Corrupted . | . . Combat Hostiles . | . . Parts Fried 4 | . 4 Impact Corruptions 10 | . 10 Robots Melted . | . . Combat Hostiles . | . . Parts Melted . | . . Heat Transferred . | . . Parts Sabotaged . | . . Parts Stolen . | . . Parts Stripped . | . . Power Chain Reactions . | . . Alert | -11 -10 ------- Run | Yrd Mat Peak Influence 125 | 25 125 Initial . | . . Average 31 | 14 37 Maximum Alert Level . | . . Low Security (%) 100 | 100 100 Level 1 . | . . Level 2 . | . . Level 3 . | . . Level 4 . | . . Level 5 . | . . High Security . | . . Max Security . | . . Squads Dispatched 2 | . 2 Investigation . | . . Extermination . | . . Reinforcement 2 | . 2 Assault . | . . Garrison . | . . Intercept . | . . Searches Triggered . | . . Construction Impeded . | . . Haulers Reinforced . | . . Active Scanning Responses . | . . Cargo Convoy Interrupts . | . . Stealth | -11 -10 --------- Run | Yrd Mat Distress Signals . | . . Communications Jammed . | . . Distress Signals . | . . Times Spotted 18 | . 18 Peak Tracking Total 6 | . 6 Tactical Retreats 2 | . 2 Traps | -11 -10 ------- Run | Yrd Mat Traps Triggered . | . . Indirectly . | . . Trap Hack Attempts . | . . Triggered . | . . Disarmed . | . . Reprogrammed . | . . Reused . | . . Traps Extracted . | . . Installed . | . . Triggered . | . . Machines | -11 -10 ---------- Run | Yrd Mat Machines Disabled . | . . Max in Single Turn . | . . Machines Repaired . | . . Machines Dismantled . | . . Machines Sabotaged . | . . Overloaded Fab Kills . | . . Hacking | -11 -10 --------- Run | Yrd Mat Machines Accessed 4 | . 4 Terminals 3 | . 3 Fabricators . | . . Repair Stations 1 | . 1 Recycling Units . | . . Scanalyzers . | . . Garrison Access . | . . Total Hacks 18 | . 18 Successful 11 | . 11 Failed 7 | . 7 Catastrophic . | . . Database Lockouts . | . . Manual . | . . Terminals 14 | . 14 Fabricators . | . . Repair Stations 4 | . 4 Recycling Units . | . . Scanalyzers . | . . Garrison Access . | . . Terminal Hacks 7 | . 7 Record 1 | . 1 Prototype ID Bank 2 | . 2 Alert Level 1 | . 1 Transport Status 1 | . 1 Investigation Status 1 | . 1 Zone Layout 1 | . 1 Fabricator Hacks . | . . Repair Station Hacks 4 | . 4 Scan Component 2 | . 2 Repair 2 | . 2 Recycling Unit Hacks . | . . Scanalyzer . | . . Garrison Access Hacks . | . . Unauthorized Hacks . | . . Terminals . | . . Fabricators . | . . Repair Stations . | . . Recycling Units . | . . Scanalyzers . | . . Garrison Access . | . . Data Cores Recovered . | . . Used . | . . Hacking Detections 4 | . 4 Full Trace Events . | . . Feedback Events . | . . Feedback Blocked . | . . Robot Schematics Acquired . | . . Robots Built . | . . Authchips . | . . Time . | . . Total Robot Build Rating . | . . Part Schematics Acquired . | . . Parts Built . | . . Authchips . | . . Time . | . . Total Part Build Rating . | . . Parts Repaired 2 | . 2 Time 52 | . 52 Parts Recycled . | . . Recycled Matter . | . . Retrieved Matter . | . . Retrieved Components . | . . Parts Scanalyzed . | . . Part Schematics Acquired . | . . Parts Damaged . | . . Bothacking | -11 -10 ------------ Run | Yrd Mat Used RIF Installer . | . . Robots Hacked . | . . Non-combat . | . . Combat . | . . Robot Hacks Applied . | . . Relay Couplers Released . | . . Fabnet Peak Effective % . | . . Robots Rewired . | . . Allies Hacked . | . . Hacks Repelled . | . . Allies | -11 -10 -------- Run | Yrd Mat Total Allies . | . . Largest Group . | . . Highest-Rated Group . | . . Highest-Rated Ally . | . . Total Orders . | . . Ally Attacks . | . . Total Damage . | . . Kills . | . . Allies Corrupted . | . . Allies Melted . | . . Intel | -11 -10 ------- Run | Yrd Mat Robot Analysis Total . | . . Derelict Logs Recovered . | . . Drone Launches . | . . Drone Recoveries . | . . Exploration | -11 -10 ------------- Run | Yrd Mat Turns Passed 1638 | 423 1215 Spaces Moved 800 | 221 579 Core 2 | 2 . Treads 798 | 219 579 Legs . | . . Wheels . | . . Hover . | . . Flight . | . . Fastest Speed 50 | 50 160 Average Speed 159 | 159 160 Slowest Speed 160 | 160 160 Overloaded Moves . | . . Propulsion Burnouts . | . . Robots Hopped . | . . Cave-ins Triggered . | . . Exploration Rate (%) 35 | 9 62 Regions Visited 1 Branch Regions . Pre-discovered Areas . | . . Known Exits Taken . | . . Unknown Exits Taken 1 | 1 . Scrap Searched . | . . Spaces Dug . | . . Terrain Destroyed . | . . Melee . | . . Projectile . | . . AOE . | . . Terrain Rammed . | . . Walls Destroyed . | . . Machines Disabled . | . . Actions | -11 -10 --------- Run | Yrd Mat Total 1023 | 265 758 Wait 86 | . 86 Move 799 | 220 579 Hop . | . . Pick Up 23 | 14 9 Fast Attach 3 | . 3 Attach 10 | 7 3 Detach . | . . Swap 9 | 4 5 Drop 8 | 3 5 Fire 28 | 17 11 Melee 57 | . 57 Ram . | . . Kick . | . . Crush . | . . Escape Stasis . | . . Rewire . | . . Trap . | . . Miscellaneous . | . . Route ------- -11/Scrapyard -10/Materials (discovered 2 exits: [*Mat] / [*Min]) History --------- Turn | Location | Event 18 | -11/Scrapyard | Discovered new exit (range 16) 424 | -11/Scrapyard | Entered Materials 425 | -10/Materials | Build established: Mutant 835 | -10/Materials | Core integrity fell below 50% 886 | -10/Materials | Lost 3 parts (1p1u1w) 928 | -10/Materials | Discovered new exit (range 15) 1455 | -10/Materials | Discovered new exit (range 6) 1534 | -10/Materials | Repaired Lgt. Treads 1563 | -10/Materials | Repaired Seismic Detector 1615 | -10/Materials | Core integrity fell below 20% 1639 | -10/Materials | Destroyed by G-47 Trooper with Particle Gun Last Messages --------------- Rating: 1 Time: 26 >>Repair Repairing Seismic Detector... ETC: 26 Repair station completes Seismic Detector repairs. Acquired Seismic Detector. Disabling or destroying stationary machines or terrain requires that a single hit meet or exceed the object's Armor value. Inspect machines by right-clicking on them, and walls via Ctrl-RMB (or as any other object in keyboard mode). Hovering the cursor over an object also shows its Armor in the Scan window. Critical hit (Burn: +37). G-34 Mercenary suffers critical hit (Smash). G-34 Mercenary destroyed. Acquired 32 matter. Map ----- +----------------------------------------------------+ | | | | | ?????????##########?????????????????????? | | ?????????##########?????????????????????? | | ?????????## [##?????????????????????? | | ?????????## ##?????????????????????? | | ?????#???##""" ######################?? | | ?????????##""" ######################?? | | ?????????##""" # ##?? | | ########### # ############## ##?? | | ##############+### ############## ##?? | | ##?####"""#### ##?? | | ##?###"!!!"### ##?? | | ##?##"" ""## ##?? | | ############# ### ##?## ## ##?? | | ############# ### ##?## < ## ##?? | | ########???## ### ##?## ## ##?? | | # #???##/### ##?## ## ##?? | | # #??### # ##?### ### ##?? | | # """ #???## # ####### #### ##?? | | # """ #?#?## # ####### #### ##?? | | + """ #???## + ##?? | | # ###### # ##?? | | ############# # ##?? | | ## ## # ####+#######+#+#+##?? | | ## """ """ ###/## ## @g ### ##?? | | ## """ """ # ## ### """ ##?? | | ## """ """ += ## ### """ ##?? | | ## [ # ## " " ### """ ##?? | | ## [ !! ###/## ## "R" ### ##?? | | ## [! ![ ## # ## """ ### ##?? | | ## ! ## # ###################?? | | ###/######### # # #########?? | | ### ######### # ? # ??????????????????? | | ### ######### # ? # ??????????????????? | | ######## # ? # ??????????????????? | | *! !!= + # ??????????????????????? | | !############ ??????????????????????? | | #### ############ ??????????????????????? | | ####+##?????????????????????????????????? | | ?????????????????????????????????? | | ?????""?????????????????????????????????? | | ??????" ????????????????????????????????? | | ??????" ##??????????????????????????????? | | ??????? ##??????????????????????????????? | | ???????"##??????????????????????????????? | | ???????"# ??????????????????????????????? | | ????????????????????????????????????????? | | ????????????????????????????????????????? | | ????????????????????????????????????????? | +----------------------------------------------------+ Best States ------------- Heat Dissipation 35 Energy Generation 10 Energy Capacity 250 Matter Stores 300 Matter Capacity 300 Sight Range 16 Terrain Scan Range 16 Terrain Scan Density 10 Evasion (%) 40 Recoil Reduction 2 Offensive Hacking 10 Item Schematics ----------------- None Robot Schematics ------------------ None Fabricated ------------ Nothing Alien Tech Used ----------------- None Achievements -------------- None Challenges ------------ None Game ------ Seed WarpSubdwellerBooster Manual? 0 Play Time 00:23:06 Cumulative 2.8 hours Start 2024.04.04 @ 02:12:48 End 2024.04.04 @ 02:45:34 Sessions 1 Manual Loads 0 Difficulty Rogue Special Mode None Game No. 4 Rogue 4 Adventurer 0 Explorer 0 Win Type - Total 0 Types 0/0/0/0/0/0/0/0/0 Lore% 4 Gallery% 6 Achievement% 8 Wizard Run 0 Options --------- Layout 1 ASCII 0 Keyboard 0 Movement Mouse Keybinds 0 Fullscreen 1 Font 24/Smallcaps Map View 50x35 Zoom Use 0% Tactical HUD 0 Map Filters NONE Filters NONE Steam 1 RUN: c32199f1-6731-45fa-9030-ddda04b12c85